bitfinex/quotes_ETHUSD_20250705
["timestamp","ask_amount","ask_price","bid_price","bid_amount"]
[1751733978604,0.001,2501.4,2501.3,8.46308067]
[1751733978806,0.001,2501.4,2501.3,18.46308067]
[1751733980109,0.001,2501.4,2501.3,26.84308067]
[1751733980592,0.42054289,2502.4,2502.1,3.9966309]
[1751733980796,0.42054289,2502.4,2502.1,2.107]
[1751733980993,0.42054289,2502.4,2502.1,6.10364261]
[1751733981394,0.04989918,2502.4,2502.1,6.10364261]
[1751733981589,0.04989918,2502.4,2502.1,2.107]
[1751733982008,0.04989918,2502.4,2502.1,6.10354281]
[1751733984308,0.04989918,2502.4,2502.2,3.99648047]
[1751733984494,3.99574853,2502.7,2502.2,3.99648047]
[1751733984495,8.374,2502.6,2502.2,3.99648047]
[1751733984881,0.04995004,2502.5,2502.2,3.99648047]
[1751733985086,0.04994805,2502.6,2502.3,3.99622083]
[1751733985903,0.04994605,2502.7,2502.4,5.51755902]
[1751733986790,0.04994605,2502.7,2502.4,1.5214]
[1751733987200,0.04994605,2502.7,2502.3,3.99625269]
[1751733987690,0.04994605,2502.7,2502.4,3.99615784]
[1751733987989,4.04555671,2502.8,2502.4,1.1584375]
[1751733988189,0.04994406,2502.8,2502.4,5.15458939]
[1751733988725,4.04546998,2502.8,2502.4,1.1584375]
[1751733988892,0.04994406,2502.8,2502.4,5.15459936]
[1751733990122,0.04994406,2502.8,2502.5,0.51545994]
[1751733991110,3.99496724,2503.2,2502.7,3.99559765]
[1751733991313,0.04993408,2503.3,2503.0,8.96414486]
[1751733991522,0.055833,2503.5,2503.0,8.96414486]
[1751733991523,0.04993009,2503.5,2503.1,3.99503392]
[1751733991732,0.11907409,2503.5,2503.1,3.99503392]
[1751733992325,4.11351213,2503.5,2503.0,5.25575777]
[1751733992720,0.11907409,2503.5,2503.0,1.26060449]
[1751733992920,5.59607942,2503.4,2503.1,2.106]
[1751733993128,0.04993408,2503.3,2503.1,2.106]
[1751733999029,0.04993408,2503.3,2503.2,2.093]
[1751734000503,4.04466289,2503.3,2502.8,5.5303384]
[1751734000703,0.04993408,2503.3,2502.7,3.99564247]
[1751734000900,4.04477311,2503.3,2502.8,2.093]
[1751734001101,4.04477311,2503.3,2502.6,11.1369]
[1751734001102,4.04471833,2503.3,2502.6,11.1369]
[1751734001317,3.99497781,2503.2,2502.9,2.093]
[1751734001624,0.04993807,2503.1,2502.9,2.093]
[1751734002619,0.06858007,2503.1,2502.9,2.093]
[1751734002825,0.06858007,2503.1,2502.6,11.1369]
[1751734002826,1.5871,2503.0,2502.6,11.1369]
[1751734003025,0.04994206,2502.9,2502.7,2.093]
[1751734004726,0.06858207,2503.0,2502.7,2.093]
[1751734005227,4.06378997,2503.0,2502.7,2.093]
[1751734005607,0.06858207,2503.0,2502.7,2.093]
[1751734006240,0.06858207,2503.0,2502.8,2.093]
[1751734006806,0.06858207,2503.0,2502.6,15.13273086]
[1751734007007,0.06858207,2503.0,2502.7,2.093]
[1751734007818,4.06381138,2503.0,2502.6,13.2171727]
[1751734008138,4.06381138,2503.0,2502.7,2.093]
[1751734008335,4.06381138,2503.0,2502.6,13.2171727]
[1751734008538,4.06381138,2503.0,2502.7,2.093]
[1751734008913,4.06381138,2503.0,2502.6,9.602]
[1751734009534,3.99538162,2502.9,2502.7,2.093]
[1751734009838,0.04994406,2502.8,2502.6,9.602]
[1751734010028,0.04994406,2502.8,2502.6,11.28281945]
[1751734010338,4.04547734,2502.8,2502.7,2.093]
[1751734010521,4.04547734,2502.8,2502.6,11.28281945]
[1751734010726,4.04547734,2502.8,2502.7,2.093]
[1751734011344,0.04994406,2502.8,2502.7,2.093]
[1751734011511,4.04546907,2502.8,2502.7,2.093]
[1751734012413,4.04546907,2502.8,2502.6,9.602]
[1751734012639,4.04546907,2502.8,2502.7,2.093]
[1751734013347,3.99568466,2502.7,2502.6,9.602]
[1751734013520,3.99568466,2502.7,2502.6,11.695]
[1751734014108,4.04555574,2502.8,2502.6,11.695]
[1751734014645,0.04994406,2502.8,2502.6,11.695]
[1751734014951,0.04994406,2502.8,2502.6,9.602]
[1751734015122,0.04994406,2502.8,2502.7,2.093]
[1751734015658,3.99578236,2502.7,2502.5,2.093]
[1751734015838,2.42326437,2502.8,2502.5,2.093]
[1751734015839,0.04994805,2502.6,2502.5,2.093]
[1751734016149,0.04994605,2502.7,2502.5,2.093]
[1751734016511,0.42120087,2502.7,2502.5,2.093]
[1751734016736,4.04565692,2502.7,2502.5,2.093]
[1751734017216,3.99585718,2502.6,2502.2,1.6162]
[1751734017418,0.04995004,2502.5,2502.3,2.093]
[1751734019785,3.89580722,2502.6,2502.3,2.093]
[1751734020044,4.04592056,2502.5,2502.3,2.093]
[1751734020549,0.04990517,2502.5,2502.3,2.093]
[1751734021151,0.04990517,2502.7,2502.3,6.08925174]
[1751734021450,0.04990517,2502.7,2502.3,4.83189467]
[1751734021451,4.04560504,2502.7,2502.3,4.83189467]
[1751734021948,4.04560504,2502.7,2502.3,6.38719467]
[1751734022853,3.99586793,2502.6,2502.3,4.29419467]
[1751734023030,3.99586793,2502.6,2502.4,2.093]
[1751734023031,0.04990517,2502.5,2502.4,2.093]
[1751734023739,4.04567979,2502.7,2502.4,2.093]
[1751734025053,4.04560368,2502.7,2502.4,2.093]
[1751734025359,3.99585546,2502.6,2502.4,2.093]
[1751734026343,4.04567474,2502.7,2502.4,2.093]
[1751734027553,0.04990517,2502.7,2502.4,7.9612993]
[1751734027852,4.04547703,2502.8,2502.4,7.9612993]
[1751734028523,4.04547703,2502.8,2502.4,3.96515089]
[1751734029250,4.04547703,2502.8,2502.4,7.96128915]
[1751734029910,0.04990517,2502.8,2502.5,3.99598905]
[1751734030158,4.06478717,2503.0,2502.6,2.42821399]
[1751734030468,4.06478717,2503.0,2502.6,1.6321]
[1751734030655,0.06954717,2503.0,2502.6,5.62791321]
[1751734030849,0.06954717,2503.0,2502.7,3.99567226]
[1751734031060,0.06954717,2503.0,2502.6,1.6321]
[1751734031239,4.06480953,2503.0,2502.6,1.6321]
[1751734031442,4.06480953,2503.0,2502.6,7.88725609]
[1751734031657,0.06954717,2503.0,2502.6,7.88725609]
[1751734032162,3.99552501,2502.8,2502.7,2.081]
[1751734032347,3.99611929,2502.5,2502.3,2.081]
[1751734032540,5.70316885,2502.4,2502.3,2.081]
[1751734032736,5.70316885,2502.4,2502.0,9.599]
[1751734032737,3.99664282,2502.1,2502.0,9.599]
[1751734032937,3.99664282,2502.1,2502.0,11.68]
[1751734033149,3.99719522,2501.8,2501.6,2.081]
[1751734033341,5.6540225,2502.0,2501.4,1.502]
[1751734033342,0.04990517,2501.7,2501.4,1.502]
[1751734033535,3.99713192,2501.8,2501.5,2.081]
[1751734033734,0.04990517,2501.7,2501.5,2.081]
[1751734034559,3.99703221,2501.9,2501.5,2.081]
[1751734034560,0.04990517,2501.8,2501.5,2.081]
[1751734035358,4.04703528,2501.8,2501.6,2.082]
[1751734035558,3.99728683,2501.7,2501.4,1.502]
[1751734035865,3.9972058,2501.8,2501.6,2.082]
[1751734036853,3.99703724,2501.9,2501.6,2.082]
[1751734037763,0.04990517,2501.8,2501.6,2.082]
[1751734037964,1.6571,2502.2,2501.6,7.57933584]
[1751734038262,3.99690526,2502.0,2501.6,3.582]
[1751734038431,0.04990517,2501.9,2501.6,3.582]
[1751734038630,0.04990517,2502.0,2501.6,7.57944024]
[1751734039152,0.04990517,2502.0,2501.6,7.57933097]
[1751734039747,0.04990517,2502.0,2501.6,3.582]
[1751734039937,0.04990517,2502.1,2501.7,3.99726546]
[1751734041037,4.04655969,2502.1,2501.6,8.83418494]
[1751734041438,0.04990517,2502.1,2501.7,3.99727299]
[1751734041943,4.04657142,2502.1,2501.6,8.83419136]
[1751734042738,0.04990517,2502.1,2501.7,3.9972695]
[1751734043065,4.04657376,2502.1,2501.6,8.83418636]
[1751734044737,0.04990517,2502.1,2501.7,3.99726893]
[1751734045275,4.04659348,2502.1,2501.6,6.07938514]
[1751734045571,0.04990517,2502.1,2501.7,3.99727805]
[1751734046174,4.04655102,2502.1,2501.6,7.91948208]
[1751734046873,3.99704613,2501.9,2501.5,0.002]
[1751734047076,0.04990517,2501.8,2501.7,2.082]
[1751734047962,0.04990517,2501.8,2501.5,0.002]
[1751734048478,0.04990517,2501.8,2501.6,2.082]
[1751734048842,0.04990517,2501.8,2501.5,3.99958337]
[1751734049170,0.04990517,2501.8,2501.6,2.082]
[1751734049384,0.04990517,2502.0,2501.6,6.0793519]
[1751734049669,0.04990517,2502.1,2501.6,12.05423161]
[1751734049872,0.04990517,2502.1,2501.7,3.99726598]
[1751734050043,0.04990517,2502.1,2501.6,16.05159553]
[1751734050044,4.04657345,2502.1,2501.6,16.05159553]
[1751734050387,4.04663922,2502.1,2501.6,16.05166035]
[1751734051875,0.04990517,2502.1,2501.6,16.05166035]
[1751734052077,4.04663677,2502.1,2501.6,16.05166035]
[1751734052252,4.04663677,2502.1,2501.6,16.05739375]
[1751734052446,3.99682974,2502.0,2501.6,16.05739375]
[1751734052653,3.99673097,2502.1,2501.6,16.05740592]
[1751734052964,4.04663796,2502.1,2501.6,16.05740592]
[1751734053580,3.99683627,2502.0,2501.6,12.05996501]
[1751734053978,4.04674144,2502.0,2501.6,12.05996501]
[1751734054158,3.99696839,2501.9,2501.6,0.0057334]
[1751734054478,0.04990517,2501.8,2501.7,2.082]
[1751734054686,4.04702724,2501.8,2501.7,2.082]
[1751734055261,5.56302724,2501.8,2501.7,2.082]
[1751734055693,1.56590517,2501.8,2501.7,2.082]
[1751734055856,0.04990517,2501.8,2501.7,2.082]
[1751734058387,0.04990517,2501.8,2501.6,0.0057334]
[1751734058590,0.04990517,2501.8,2501.6,2.0767334]
[1751734059286,4.04703412,2501.8,2501.6,2.0767334]
[1751734059895,0.04990517,2501.8,2501.6,2.0767334]
[1751734060268,4.046873,2501.9,2501.6,2.0767334]
[1751734060596,3.99712691,2501.8,2501.6,2.0767334]
[1751734061293,4.04695188,2501.9,2501.6,2.0767334]
[1751734063968,0.04990517,2501.9,2501.6,2.0767334]
[1751734064190,3.99728184,2501.7,2501.6,2.0767334]
[1751734064386,5.62748184,2501.7,2501.6,2.0767334]
[1751734064590,14.35736036,2501.7,2501.6,0.0057334]
[1751734064768,24.30745519,2501.7,2501.6,0.0057334]
[1751734066194,24.30745519,2501.7,2501.4,0.002]
[1751734066195,15.58640143,2501.5,2501.4,0.002]
[1751734066398,15.95837478,2501.5,2501.4,0.002]
[1751734069397,24.26437478,2501.5,2501.4,0.002]
[1751734070508,15.95837478,2501.5,2501.4,0.002]
[1751734071109,14.26337478,2501.5,2501.4,0.002]
[1751734071407,15.18705713,2501.5,2501.4,0.002]
[1751734071983,25.18705713,2501.5,2501.4,0.002]
[1751734072810,5.58688092,2501.2,2501.1,0.0429691]
[1751734073014,24.31275944,2501.2,2501.1,0.0429691]
[1751734073197,24.26285427,2501.2,2501.1,0.0429691]
[1751734073387,27.08893435,2501.2,2501.1,0.0429691]
[1751734076621,18.78493435,2501.2,2501.1,0.0429691]
[1751734076816,27.08793435,2501.2,2501.1,0.0429691]
[1751734080918,27.08582428,2501.2,2501.1,0.0429691]
[1751734083023,27.08582428,2501.2,2500.6,2.1149691]
[1751734083024,3.99888031,2500.7,2500.6,2.1149691]
[1751734083325,13.14652956,2500.7,2500.6,2.1149691]
[1751734083536,13.09662439,2500.7,2500.6,2.1149691]
[1751734084745,14.74172439,2500.7,2500.6,2.1149691]
[1751734085400,14.74172439,2500.7,2500.6,0.0429691]
[1751734086928,15.11141095,2500.7,2500.6,0.0429691]
[1751734087127,25.11141095,2500.7,2500.6,0.0429691]
[1751734087531,25.11141095,2500.7,2500.6,1e-08]
[1751734087734,25.66141095,2500.7,2500.6,1e-08]
[1751734088709,25.11141095,2500.7,2500.6,1e-08]
[1751734090442,25.11131359,2500.7,2500.6,1e-08]
[1751734092162,25.11131359,2500.7,2500.5,0.002]
[1751734092163,15.59544023,2500.6,2500.5,1e-08]
[1751734092331,18.91942543,2500.6,2500.5,1e-08]
[1751734095039,19.46942543,2500.6,2500.5,1e-08]
[1751734095359,4.00048005,2499.7,2499.6,0.0429691]
[1751734095560,22.71197442,2499.7,2499.6,0.0429691]
[1751734095731,23.46181333,2499.7,2499.6,0.0429691]
[1751734096624,4.0006401,2499.6,2499.5,0.002]
[1751734096830,4.42013447,2499.6,2499.5,0.002]
[1751734098056,0.41949437,2499.6,2499.5,1.6612]
[1751734098231,12.71113447,2499.6,2499.5,1.6612]
[1751734098556,12.6612293,2499.6,2499.5,1.6612]
[1751734098859,12.2916401,2499.6,2499.5,1.6612]
[1751734099229,12.2916401,2499.6,2499.5,0.002]
[1751734099440,12.66110327,2499.6,2499.5,0.002]
[1751734099621,12.2916401,2499.6,2499.5,0.002]
[1751734101246,12.66119675,2499.6,2499.5,0.002]
[1751734101755,12.2916401,2499.6,2499.5,0.002]
[1751734102072,12.66119513,2499.6,2499.5,0.002]
[1751734102235,12.66121008,2499.6,2499.5,0.002]
[1751734103243,14.48415942,2499.6,2499.5,0.002]
[1751734104249,12.66121008,2499.6,2499.5,0.002]
[1751734105156,22.66121008,2499.6,2499.5,0.002]
[1751734105354,24.22901008,2499.6,2499.5,0.002]
[1751734115587,23.8594401,2499.6,2499.5,0.002]
[1751734115885,24.22908281,2499.6,2499.5,0.002]
[1751734116989,27.05203942,2499.6,2499.5,0.002]
[1751734117283,25.48423942,2499.6,2499.5,0.002]
[1751734119084,15.48423942,2499.6,2499.5,0.002]
[1751734119485,25.48423942,2499.6,2499.5,0.002]
[1751734121670,22.64928281,2499.6,2499.5,0.002]
[1751734125075,4.37028281,2499.6,2499.5,0.002]
[1751734125275,8.64564271,2499.6,2499.5,0.002]
[1751734125470,12.64628281,2499.6,2499.5,0.002]
[1751734125972,4.37028281,2499.6,2499.5,0.002]
[1751734126173,8.64564271,2499.6,2499.5,0.002]
[1751734126573,12.64628281,2499.6,2499.5,0.002]
[1751734126774,0.36964271,2499.6,2499.5,1.6324]
[1751734126988,0.36964271,2499.6,2499.5,2.40766025]
[1751734127303,4.00097498,2500.1,2499.6,1.6304]
[1751734127499,22.64562862,2500.0,2499.6,1.6304]
[1751734127812,4.42073566,2499.9,2499.6,1.6304]
[1751734127997,12.64605202,2499.8,2499.6,1.6304]
[1751734128200,0.4205151,2499.7,2499.6,1.6304]
[1751734128400,0.04990517,2499.7,2499.6,1.6304]
[1751734128911,4.05038522,2499.7,2499.6,1.6304]
[1751734129206,0.04990517,2499.7,2499.6,1.6304]
[1751734130110,4.42085011,2499.7,2499.6,1.6304]
[1751734130680,0.42037006,2499.7,2499.6,1.6304]
[1751734130881,0.37046489,2499.7,2499.6,1.6304]
[1751734131418,0.37041853,2499.7,2499.6,1.6304]
[1751734131571,12.275399,2499.8,2499.6,1.6304]
[1751734131774,8.273,2499.7,2499.6,1.6304]
[1751734133702,12.2713235,2499.8,2499.6,1.6304]
[1751734134007,4.05038522,2499.7,2499.6,1.6304]
[1751734134409,4.0006401,2499.6,2499.5,0.002]
[1751734134800,12.32054527,2499.6,2499.5,0.002]
[1751734135102,12.2706401,2499.6,2499.5,0.002]
[1751734137727,8.27,2499.6,2499.5,0.002]
[1751734138429,12.2706401,2499.6,2499.5,0.002]
[1751734144029,15.40855508,2499.6,2499.5,0.002]
[1751734144185,14.26797154,2499.6,2499.5,0.002]
[1751734145116,14.268049,2499.6,2499.5,0.002]
[1751734145317,12.64093402,2499.6,2499.5,0.002]
[1751734146020,12.2706401,2499.6,2499.5,0.002]
[1751734146186,4.37100314,2499.6,2499.5,0.002]
[1751734146387,0.42026821,2499.6,2499.5,0.002]
[1751734146921,8.262,2499.6,2499.5,0.002]
[1751734147121,12.2626401,2499.6,2499.5,0.002]
[1751734147317,4.0006401,2499.6,2499.5,0.002]
[1751734147518,8.262,2499.6,2499.5,0.002]
[1751734147821,12.26255152,2499.7,2499.5,0.002]
[1751734147994,4.00055152,2499.7,2499.5,0.002]
[1751734148194,12.31245669,2499.7,2499.5,0.002]
[1751734148415,12.26255152,2499.7,2499.5,0.002]
[1751734148622,0.04990517,2499.6,2499.5,0.002]
[1751734149324,8.261,2499.7,2499.6,1.6529]
[1751734149527,0.37061711,2499.7,2499.6,1.6529]
[1751734150705,4.42100233,2499.7,2499.6,1.6529]
[1751734150905,4.0006401,2499.6,2499.5,0.002]
[1751734151121,12.2606401,2499.6,2499.5,0.002]
[1751734151328,12.63152602,2499.6,2499.5,0.002]
[1751734151821,12.63153799,2499.6,2499.5,0.002]
[1751734152827,8.63089789,2499.6,2499.5,0.002]
[1751734153210,8.63105113,2499.6,2499.5,0.002]
[1751734154107,0.37105113,2499.6,2499.5,0.002]
[1751734154314,12.25833221,2499.8,2499.5,3.35822665]
[1751734154630,0.37117686,2499.7,2499.5,3.35822665]
[1751734154801,12.25833221,2499.8,2499.5,3.35822665]
[1751734155001,0.37117643,2499.7,2499.5,3.35822665]
[1751734155226,0.37126941,2499.6,2499.5,3.35822665]
[1751734155599,8.258,2499.8,2499.5,7.35902681]
[1751734155814,0.37128783,2499.7,2499.5,7.35902681]
[1751734156104,8.257,2499.8,2499.5,3.35822665]
[1751734156432,0.37129554,2499.7,2499.5,3.35822665]
[1751734156724,8.257,2499.8,2499.5,7.35902187]
[1751734156927,0.3712909,2499.7,2499.5,3.35822665]
[1751734157109,8.257,2499.8,2499.5,3.35822665]
[1751734157310,0.37128281,2499.7,2499.5,3.35822665]
[1751734157628,8.257,2499.8,2499.5,3.35822665]
[1751734157834,0.37127573,2499.7,2499.5,3.35822665]
[1751734158021,8.257,2499.8,2499.5,7.35901282]
[1751734158222,0.37127574,2499.7,2499.5,7.35901282]
[1751734158417,8.257,2499.8,2499.5,3.35822665]
[1751734158733,0.37126144,2499.7,2499.5,3.35822665]
[1751734158934,8.257,2499.8,2499.5,3.35822665]
[1751734159134,0.37127187,2499.7,2499.5,3.35822665]
[1751734159446,8.257,2499.8,2499.5,3.35822665]
[1751734159606,0.37126608,2499.7,2499.5,3.35822665]
[1751734159806,8.257,2499.8,2499.5,3.35822665]
[1751734160010,0.37126578,2499.7,2499.5,3.35822665]
[1751734160314,8.257,2499.8,2499.5,3.35822665]
[1751734160522,0.37126696,2499.7,2499.5,3.35822665]
[1751734160725,8.257,2499.8,2499.5,3.35822665]
[1751734160926,0.37125927,2499.7,2499.5,3.35822665]
[1751734161111,8.254,2499.8,2499.5,3.35822665]
[1751734161335,0.37125181,2499.7,2499.5,3.35822665]
[1751734161531,8.254,2499.8,2499.5,3.35822665]
[1751734161720,0.37124426,2499.7,2499.5,3.35822665]
[1751734161920,12.25440475,2499.8,2499.5,3.35822665]
[1751734162222,0.37124433,2499.7,2499.5,1.6549]
[1751734162423,8.254,2499.8,2499.5,1.6549]
[1751734162630,0.37123288,2499.7,2499.5,1.6549]
[1751734162817,8.254,2499.8,2499.5,1.6549]
[1751734163330,12.254361,2499.8,2499.5,1.6549]
[1751734163504,0.001,2500.1,2499.6,0.0400064]
[1751734163705,0.001,2500.1,2499.9,4.00016]
[1751734163706,0.37122808,2500.0,2499.9,4.00016]
[1751734164018,0.001,2500.1,2500.0,1.564]
[1751734164220,0.37228397,2500.1,2500.0,1.564]
[1751734164826,0.001,2500.1,2500.0,3.01886186]
[1751734165310,0.001,2500.1,2500.0,7.01886186]
[1751734166627,0.001,2500.1,2500.0,3.01886186]
[1751734166831,0.001,2500.1,2500.0,7.05886186]
[1751734167136,0.001,2500.1,2500.0,22.35886186]
[1751734167325,0.001,2501.2,2500.8,1.5831]
[1751734167523,0.001,2501.2,2500.8,3.6281]
[1751734167731,0.001,2501.2,2500.8,12.59224486]
[1751734167930,0.001,2501.2,2500.8,16.59088215]
[1751734168231,0.001,2501.2,2500.8,18.64987366]
[1751734168428,0.001,2501.2,2500.9,3.99856051]
[1751734168740,0.001,2501.2,2501.0,3.99839707]
[1751734168913,0.001,2501.2,2501.1,8.96414486]
[1751734169121,0.001,2501.2,2501.1,12.96238563]
[1751734169329,0.001,2501.2,2501.1,14.81677426]
[1751734171040,0.001,2501.2,2501.1,27.01897426]
[1751734171239,0.001,2501.2,2501.1,31.76897426]
[1751734172744,0.001,2501.2,2501.1,32.07286034]
[1751734172942,0.001,2501.2,2501.1,31.76897426]
[1751734173141,0.001,2501.2,2501.1,42.05797426]
[1751734174539,0.001,2501.2,2501.1,12.8048294]
[1751734174719,0.001,2501.2,2501.1,14.8498294]
[1751734175147,0.001,2501.2,2501.1,10.0998294]
[1751734176941,0.001,2501.2,2501.1,20.0998294]
[1751734178043,0.001,2501.2,2501.1,37.30397426]
[1751734181028,0.001,2501.2,2501.1,18.3308294]
[1751734181640,0.001,2501.2,2501.1,3.41278863]
[1751734181956,0.001,2501.2,2501.1,16.41515666]
[1751734182138,0.001,2501.2,2501.1,16.37517426]
[1751734182341,0.001,2501.2,2501.1,12.37693349]
[1751734182656,0.001,2501.2,2501.0,10.275]
[1751734183039,0.001,2501.2,2501.0,2.037]
[1751734183745,0.001,2501.2,2501.0,6.03539762]
[1751734185259,0.001,2501.2,2501.1,6.14662317]
[1751734186768,0.001,2501.2,2501.1,14.38262317]
[1751734186977,0.001,2501.2,2501.1,17.75275879]
[1751734200562,0.001,2501.2,2501.1,4.96851802]
[1751734200742,0.001,2501.2,2501.1,10.267]
[1751734201073,0.001,2501.2,2501.1,14.26524077]
[1751734203176,0.001,2501.2,2501.1,14.81524077]
[1751734204273,0.001,2501.2,2501.1,14.26524077]
[1751734204775,0.001,2501.2,2501.1,14.81524077]
[1751734204984,0.001,2501.2,2501.1,18.22261938]
[1751734205278,0.001,2501.2,2501.1,19.82141938]
[1751734209761,0.001,2501.2,2501.1,29.82141938]
[1751734209976,0.0229507,2501.4,2501.3,6.14672108]
[1751734210282,0.0229507,2501.4,2501.3,33.37084971]
[1751734210600,1e-08,2501.4,2501.3,37.17976298]
[1751734211659,0.043184,2501.9,2501.8,6.08912207]
[1751734211851,0.043184,2501.9,2501.8,16.34512207]
[1751734213274,0.043184,2501.9,2501.8,15.79512207]
[1751734215984,0.043184,2501.9,2501.8,26.34512207]
[1751734216153,0.043184,2501.9,2501.8,28.67128931]
[1751734216785,0.043184,2501.9,2501.8,28.12128931]
[1751734216983,0.043184,2501.9,2501.8,28.67128931]
[1751734219288,0.043184,2501.9,2501.8,37.62943873]
[1751734220297,0.044184,2501.9,2501.8,37.62943873]
[1751734220988,0.044184,2501.9,2501.8,27.37343873]
[1751734221167,0.044184,2501.9,2501.8,28.66628931]
[1751734221370,0.044184,2501.9,2501.8,12.57716724]
[1751734221569,0.044184,2501.9,2501.8,10.25]
[1751734221771,0.044184,2501.9,2501.8,2.031]
[1751734222293,5.5893463,2501.9,2501.8,2.031]
[1751734222802,1.592384,2501.9,2501.8,2.031]
[1751734226123,5.5893463,2501.9,2501.8,2.031]
[1751734226929,1.592384,2501.9,2501.8,2.031]
[1751734230327,0.044184,2501.9,2501.8,2.031]
[1751734235452,4.0411463,2501.9,2501.8,2.031]
[1751734235814,0.044184,2501.9,2501.8,2.031]
[1751734239132,0.044184,2501.9,2501.8,6.83821761]
[1751734240831,0.044184,2501.9,2501.8,8.49661761]
[1751734241147,0.044184,2501.9,2501.8,8.45664639]
[1751734241538,0.044184,2501.9,2501.8,9.00664639]
[1751734243359,0.044184,2501.9,2501.8,17.21964639]
[1751734246166,0.044184,2501.9,2501.8,16.66964639]
[1751734247041,0.044184,2501.9,2501.8,17.21964639]
[1751734251550,0.044184,2501.9,2501.8,17.52684638]
[1751734251981,0.044184,2501.9,2501.8,5.31724639]
[1751734252165,0.044184,2501.9,2501.8,8.97714639]
[1751734255082,0.044184,2501.9,2501.8,13.72714639]
[1751734255278,0.044184,2501.9,2501.8,11.70114639]
[1751734255484,0.044184,2501.9,2501.8,21.93414639]
[1751734257286,0.044184,2501.9,2501.8,20.30024639]
[1751734258700,0.044184,2501.9,2501.8,6.07012432]
[1751734258854,0.044184,2501.9,2501.8,6.776]
[1751734261081,0.044184,2501.9,2501.8,2.026]
[1751734261281,0.044184,2501.9,2501.8,6.02312207]
[1751734261875,0.044184,2501.9,2501.8,6.06309329]
[1751734264886,0.044184,2501.9,2501.8,6.61309329]
[1751734265049,0.044184,2501.9,2501.8,16.85440786]
[1751734265250,0.044184,2501.9,2501.8,16.81443664]
[1751734266155,0.044184,2501.9,2501.8,18.32183664]
[1751734267658,0.044184,2501.9,2501.8,18.6190609]
[1751734269083,0.044184,2501.9,2501.8,28.6190609]
[1751734271690,1e-08,2501.9,2501.8,28.6190609]
[1751734273195,0.043184,2502.4,2502.3,4.54632338]
[1751734273399,0.043184,2502.4,2502.3,5.15343572]
[1751734273606,0.043184,2502.4,2502.3,10.82911234]
[1751734273922,0.043184,2502.4,2502.3,0.60711234]
[1751734274084,0.043184,2502.4,2502.3,2.021]
[1751734274903,0.043184,2502.4,2502.3,6.01732338]
[1751734275118,0.043184,2502.4,2502.3,6.05728661]
[1751734275297,0.043184,2502.4,2502.3,6.01732338]
[1751734275492,0.043184,2502.4,2502.3,6.60728661]
[1751734275698,0.043184,2502.4,2502.3,8.96276064]
[1751734275904,0.043184,2502.4,2502.3,8.92279741]
[1751734278798,0.043184,2502.4,2502.3,13.67279741]
[1751734279004,0.043184,2502.4,2502.3,18.92279741]
[1751734280898,0.043184,2502.4,2502.3,20.44729741]
[1751734286330,0.044184,2502.4,2502.3,28.64129741]
[1751734292999,0.044184,2502.4,2502.3,20.44629741]
[1751734293204,0.044184,2502.4,2502.3,27.11379741]
[1751734295930,0.044184,2502.4,2502.3,16.90179741]
[1751734296138,0.044184,2502.4,2502.3,27.11279741]
[1751734296548,0.044184,2502.4,2502.3,31.86279741]
[1751734297020,0.044184,2502.4,2502.3,27.11279741]
[1751734298040,0.044184,2502.4,2502.3,18.92179741]
[1751734298218,0.044184,2502.4,2502.3,16.01632338]
[1751734298541,0.044184,2502.4,2502.3,24.20632338]
[1751734298542,1.587684,2502.4,2502.3,24.20632338]
[1751734298720,1.587684,2502.4,2502.3,20.21]
[1751734298917,1.587684,2502.4,2502.3,2.02]
[1751734299332,5.58384768,2502.4,2502.3,2.02]
[1751734299611,2.55074573,2502.4,2502.3,2.02]
[1751734300011,1.587684,2502.4,2502.3,2.02]
[1751734303036,5.58384768,2502.4,2502.3,2.02]
[1751734303239,1.587684,2502.4,2502.3,2.02]
[1751734304358,3.99642877,2502.3,2501.9,2.016]
[1751734304519,1.5269,2502.2,2501.9,2.016]
[1751734305821,5.5234394,2502.2,2501.9,2.016]
[1751734306021,2.48827568,2502.2,2501.9,2.016]
[1751734306339,1.5269,2502.2,2501.9,2.016]
[1751734306647,1.5269,2502.2,2501.9,6.01296095]
[1751734307824,1.5269,2502.2,2501.9,6.01496095]
[1751734312358,5.7031032,2502.4,2501.9,2.018]
[1751734312532,5.7031032,2502.4,2501.9,6.01489542]
[1751734313154,1.70688917,2502.4,2502.0,3.99676581]
[1751734313460,1.70688917,2502.4,2501.9,6.01488655]
[1751734313751,3.99633499,2502.3,2501.9,2.018]
[1751734314153,7.09232051,2502.4,2501.9,6.01494208]
[1751734314462,3.99633477,2502.3,2501.9,6.01494208]
[1751734314650,1.6128,2502.2,2501.9,2.018]
[1751734315150,1.66270517,2502.2,2501.9,2.018]
[1751734317265,1.66270517,2502.2,2501.9,6.0149426]
[1751734317440,1.6128,2502.2,2501.9,6.0149426]
[1751734317846,1.6128,2502.2,2502.0,3.99669062]
[1751734319368,1.6128,2502.2,2501.9,6.01487236]
[1751734320667,1.6128,2502.2,2502.0,3.9967878]
[1751734323739,1.6128,2502.2,2501.9,6.0148843]
[1751734324481,1.6128,2502.2,2502.0,3.99678544]
[1751734325974,1.6128,2502.2,2502.1,3.99664282]
[1751734326267,1.708184,2502.4,2502.2,3.99640477]
[1751734326671,1.75808917,2502.4,2502.0,3.99669863]
[1751734326970,1.708184,2502.4,2502.1,3.99664282]
[1751734327769,1.708184,2502.4,2502.2,3.99645509]
[1751734328069,1.708184,2502.4,2502.1,3.99656119]
[1751734329452,1.708184,2502.4,2502.2,3.99646641]
[1751734330479,1.708184,2502.4,2502.3,3.99632338]
[1751734330686,0.044184,2502.4,2502.1,1.60286642]
[1751734330869,0.044184,2502.4,2502.1,6.81742152]
[1751734331182,0.044184,2502.4,2502.2,3.99648309]
[1751734331679,0.044184,2502.4,2502.3,3.99632338]
[1751734333277,0.044184,2502.4,2502.3,6.01232338]
[1751734347503,0.044184,2502.4,2502.3,3.99632338]
[1751734347860,0.044184,2502.4,2501.9,5.5554195]